fUSD/lending_fUSD_20250119
["ID","MTS","AMOUNT","RATE_DAILY","PERIOD"]
[349557072,1737293452978,-1743.24,0.0002,2]
[349557073,1737293452987,-857.58,0.0002,2]
[349557074,1737293452996,-1561.87,0.0002,2]
[349557075,1737293453005,-500.0,0.0002,2]
[349557076,1737293453013,-608.06,0.0002,2]
[349557077,1737293453022,-500.0,0.0002,2]
[349557078,1737293453031,-619.92,0.0002,2]
[349557079,1737293453040,-2481.98,0.0002,2]
[349557080,1737293453049,-1204.71,0.0002,2]
[349557081,1737293453058,-500.0,0.0002,2]
[349557082,1737293453067,-500.23,0.0002,2]
[349557083,1737293453076,-500.0,0.0002,2]
[349557084,1737293453086,-1413.5,0.0002,2]
[349557085,1737293453098,-1328.79880903,0.0002,2]
[349557086,1737293453107,-353.46082954,0.0002,2]
[349557087,1737293453273,-310.15,0.00019178,2]
[349557088,1737293453284,-189.85,0.00019178,2]
[349557089,1737293453293,-452.82999999,0.00019178,2]
[349557090,1737293453304,-47.17000001,0.00019178,2]
[349557091,1737293453314,-500.0,0.00019178,2]
[349557092,1737293453324,-500.0,0.00019451,2]
[349557093,1737293453343,-379.11720604,0.00019452,2]
[349557094,1737293453358,-120.88279396,0.00019452,2]
[349557095,1737293453367,-283.57265373,0.00019452,2]
[349557096,1737293453391,-503.58,0.00019451,2]
[349557097,1737293453400,-216.42734627,0.00019452,2]
[349557098,1737293453411,-500.0,0.00019452,2]
[349557099,1737293453420,-500.0,0.00019726,2]
[349557100,1737293453430,-500.0,0.00019726,2]
[349557101,1737293453439,-4291.42917046,0.0002,2]
[349557102,1737293453449,-586.9,0.0002,2]
[349557103,1737293453458,-3145.25,0.0002,2]
[349557104,1737293453467,-504.24678582,0.0002,2]
[349557105,1737293453476,-4570.11,0.0002,2]
[349557106,1737293453485,-789.70769733,0.0002,2]
[349557107,1737293453723,-265.23756802,0.00019178,2]
[349557108,1737293453733,-500.0,0.00019178,2]
[349557109,1737293453742,-81.78159984,0.00019726,2]
[349557110,1737293453762,-500.0,0.00019178,2]
[349557111,1737293453772,-418.21840016,0.00019726,2]
[349557112,1737293453783,-1584.18230267,0.0002,2]
[349557113,1737293453793,-975.87,0.0002,2]
[349557114,1737293453802,-500.0,0.0002,2]
[349557115,1737293453814,-1306.05,0.0002,2]
[349557116,1737293453823,-2219.94,0.0002,2]
[349557117,1737293453833,-500.0,0.0002,2]
[349557118,1737293453843,-37.20994695,0.0002,2]
[349557119,1737293453856,-1478.2838715,0.0002,2]
[349557120,1737293453868,-304.32540826,0.0002,2]
[349557121,1737293453882,-402.6,0.0002,2]
[349557122,1737293453893,-202.99077329,0.0002,2]
[349557123,1737293453902,-765.71,0.0002,2]
[349557124,1737293453915,-500.0,0.0002,2]
[349557125,1737293453928,-545.35,0.0002,2]
[349557126,1737293453938,-498.08413809,0.0002,2]
[349557127,1737293453957,-267.180579,0.00019452,2]
[349557128,1737293454455,-500.0,0.00019178,2]
[349557129,1737293454465,-500.0,0.00019178,2]
[349557130,1737293454474,-500.0,0.00019178,2]
[349557131,1737293454483,-500.0,0.00019451,2]
[349557132,1737293454493,-503.53,0.00019451,2]
[349557133,1737293454502,-232.819421,0.00019452,2]
[349557134,1737293454511,-197.97,0.00019452,2]
[349557135,1737293454521,-285.407179,0.0002,2]
[349557136,1737293454532,-1271.13868291,0.0002,2]
[349557137,1737293454541,-770.18,0.0002,2]
[349557138,1737293454550,-136.24630809,0.0002,2]
[349557139,1737293454562,-491.32369191,0.0002,2]
[349557140,1737293454571,-1353.77,0.0002,2]
[349557141,1737293454579,-766.31880809,0.0002,2]
[349557142,1737293454590,-1955.8075663,0.0002,2]
[349557143,1737293454601,-2074.8974902,0.0002,2]
[349557144,1737293454612,-353.53285901,0.0002,2]
[349557145,1737293455070,-1609.97505764,0.0002,2]
[349557146,1737293455085,-4320.2369804,0.0002,2]
[349557147,1737293455096,-53.62889525,0.0002,2]
[349557148,1737293455111,-2054.74590885,0.0002,2]
[349557149,1737293455122,-3446.2851959,0.0002,2]
[349557150,1737293455132,-500.0,0.0002,2]
[349557151,1737293455143,-24196.2826617,0.0002,2]
[349557152,1737293455155,-602.02,0.0002,2]
[349557153,1737293455171,-2730.55566868,0.0002,2]
[349557154,1737293455192,-398.9225185,0.0002,2]
[349557155,1737293455203,-17008.39700897,0.0002,2]
[349557156,1737293455213,-976.18,0.0002,2]
[349557157,1737293455223,-1324.09,0.0002,2]
[349557158,1737293455233,-998.75825075,0.0002,2]
[349557159,1737293455243,-4170.94,0.0002,2]
[349557160,1737293455252,-500.0,0.0002,2]
[349557161,1737293455262,-951.03,0.0002,2]
[349557162,1737293455271,-3067.87,0.0002,2]
[349557163,1737293455281,-8533.95,0.0002,2]
[349557164,1737293455291,-1885.7,0.0002,2]
[349557165,1737293455300,-1131.26,0.0002,2]
[349557166,1737293455310,-500.0,0.0002,2]
[349557167,1737293455320,-500.0,0.0002,2]
[349557168,1737293455329,-2535.79,0.0002,2]
[349557169,1737293455340,-2004.85,0.0002,2]
[349557170,1737293455350,-1153.32,0.0002,2]
[349557171,1737293455359,-504.88,0.0002,2]
[349557172,1737293455369,-999.07,0.0002,2]
[349557173,1737293455381,-1083.03,0.0002,2]
[349557174,1737293455391,-1143.29,0.0002,2]
[349557175,1737293455402,-734.34,0.0002,2]
[349557176,1737293455417,-1117.14,0.0002,2]
[349557177,1737293455427,-500.0,0.0002,2]
[349557178,1737293455438,-153.40146704,0.0002,2]
[349557179,1737293455448,-566.4,0.0002,2]
[349557180,1737293455458,-2836.76,0.0002,2]
[349557181,1737293455468,-1641.48,0.0002,2]
[349557182,1737293455478,-1473.93,0.0002,2]
[349557183,1737293455488,-692.88,0.0002,2]
[349557184,1737293455498,-500.0,0.0002,2]
[349557185,1737293455508,-515.4204814,0.0002,2]
[349557186,1737293455518,-1357.16,0.0002,2]
[349557187,1737293455529,-500.0,0.0002,2]
[349557188,1737293455539,-544.75,0.0002,2]
[349557189,1737293455548,-7496.3,0.0002,2]
[349557190,1737293455557,-2850.64,0.0002,2]
[349557191,1737293455567,-1649.97602625,0.0002,2]
[349557192,1737293455579,-66.29397375,0.0002,2]
[349557193,1737293455588,-3010.02,0.0002,2]
[349557194,1737293455598,-682.03,0.0002,2]
[349557195,1737293455607,-1944.77,0.0002,2]
[349557196,1737293455617,-1287.89,0.0002,2]
[349557197,1737293455627,-1789.44,0.0002,2]
[349557198,1737293455638,-292.14398449,0.0002,2]
[349557199,1737293455648,-579.66,0.0002,2]
[349557200,1737293455657,-328.35204176,0.0002,2]
[349557207,1737294129300,152.61,0.00010137,2]
[349557211,1737294448169,-459.01857388,0.00017372,2]
[349557215,1737294549114,-602.3276,0.00016587,2]
[349557222,1737294632369,-13.1824,0.00016587,2]
[349557223,1737294632379,-500.0,0.00018164,2]
[349557224,1737294632389,-410.86126559,0.00018419,2]
[349557225,1737294632399,-2751.0,0.00018469,2]
[349557226,1737294632409,-200.0,0.00018519,2]
[349557227,1737294632418,-194.53,0.00018531,2]
[349557228,1737294632427,-152.29,0.00018553,2]
[349557229,1737294632437,-250.0,0.00018689,2]
[349557230,1737294632446,-194.46,0.00018736,2]
[349557231,1737294632458,-618.32359095,0.00018782,2]
[349557232,1737294632469,-881.67640905,0.00018782,2]
[349557233,1737294632480,-678.4,0.00018787,2]
[349557234,1737294632490,-615.51,0.00018851,2]
[349557235,1737294632500,-400.0,0.000189,6]
[349557236,1737294632509,-3551.64159095,0.00018983,2]
[349557237,1737294632520,-5695.5,0.00018983,2]
[349557238,1737294632537,-436.05903672,0.00018983,2]
[349557239,1737294632581,-1128.17890463,0.00018983,2]
[349557240,1737294632687,-886.72743198,0.00018983,2]
[349557241,1737294632743,-283.2102864,0.00018983,2]
[349557477,1737294638299,-651.249959,0.00018983,2]
[349557481,1737294638310,-11267.43279032,0.00018983,2]
[349557483,1737294638319,-994.92131438,0.0001904,2]
[349557487,1737294638354,-1415.19868562,0.0001904,2]
[349557489,1737294638363,-371.67,0.00019078,2]
[349557491,1737294638373,-172.09064674,0.00019078,2]
[349557493,1737294638382,-289.6739,0.00019078,2]
[349557495,1737294638391,-1671.99457685,0.00019078,2]
[349557498,1737294638411,-2471.93832315,0.00019078,2]
[349557500,1737294638421,-231.76,0.00019139,2]
[349557502,1737294638430,-107.46122181,0.00019176,2]
[349557511,1737294638519,-42.53877819,0.00019176,2]
[349557513,1737294638531,-505.72891135,0.00019177,2]
[349557515,1737294638541,-403.64114051,0.00019177,2]
[349557517,1737294638550,-500.0,0.00019177,2]
[349557519,1737294638559,-115.01873995,0.00019177,2]
[349557521,1737294638570,-200.25100182,0.00019177,2]
[349557523,1737294638579,-500.0,0.00019177,2]
[349557525,1737294638588,-500.0,0.00019177,2]
[349557527,1737294638597,-500.0,0.00019177,2]
[349557529,1737294638606,-500.0,0.00019177,2]
[349557531,1737294638617,-500.0,0.00019177,2]
[349557533,1737294638626,-500.0,0.00019177,2]
[349557535,1737294638635,-500.0,0.00019177,2]
[349557537,1737294638644,-188.93037148,0.00019177,2]
[349557539,1737294638654,-432.14181174,0.00019177,2]
[349557541,1737294638663,-264.40010644,0.00019177,2]
[349557543,1737294638673,-500.0,0.00019178,2]
[349557545,1737294638682,-500.0,0.00019178,2]
[349557547,1737294638691,-500.0,0.00019178,2]
[349557549,1737294638701,-500.0,0.00019178,2]
[349557551,1737294638710,-500.0,0.00019178,2]
[349557553,1737294638719,-500.0,0.00019178,2]
[349557555,1737294638730,-500.0,0.00019178,2]
[349557557,1737294638739,-519.41997753,0.00019178,2]
[349557558,1737294638749,-500.0,0.00019178,2]
[349557560,1737294638758,-500.0,0.00019178,2]
[349557562,1737294638767,-385.68695762,0.00019178,2]
[349557564,1737294638776,-500.0,0.00019178,2]
[349557566,1737294638786,-9.16977337,0.00019178,2]
[349557570,1737294638810,-490.83022663,0.00019178,2]
[349557572,1737294638819,-500.0,0.00019178,2]
[349557574,1737294638828,-512.42714737,0.00019178,2]
[349557576,1737294638837,-500.0,0.00019178,2]
[349557578,1737294638846,-502.82,0.00019178,2]
[349557579,1737294638855,-500.0,0.00019178,2]
[349557581,1737294638864,-500.0,0.00019178,2]
[349557583,1737294638873,-506.60787056,0.00019178,2]
[349557585,1737294638883,-497.02698859,0.00019178,2]
[349557589,1737294638899,-2.97301141,0.00019178,2]
[349557591,1737294638908,-500.0,0.00019178,2]
[349557593,1737294638918,-500.0,0.00019178,2]
[349557595,1737294638927,-500.0,0.00019178,2]
[349557597,1737294638937,-599.42,0.00019178,2]
[349557599,1737294638946,-500.0,0.00019178,2]
[349557601,1737294638955,-500.0,0.00019178,2]
[349557603,1737294638964,-500.0,0.00019178,2]
[349557605,1737294638972,-500.0,0.00019178,2]
[349557607,1737294638981,-515.18541379,0.00019178,2]
[349557609,1737294638991,-843.51,0.00019178,2]
[349557611,1737294639000,-500.0,0.00019178,2]
[349557612,1737294639009,-500.0,0.00019178,2]
[349557614,1737294639018,-500.0,0.00019178,2]
[349557616,1737294639027,-500.0,0.00019178,2]
[349557618,1737294639036,-500.0,0.00019178,2]
[349557620,1737294639044,-500.0,0.00019178,2]
[349557622,1737294639053,-524.07,0.00019178,2]
[349557624,1737294639062,-500.0,0.00019178,2]
[349557626,1737294639071,-500.0,0.00019178,2]
[349557628,1737294639080,-500.0,0.00019178,2]
[349557630,1737294639090,-215.85140393,0.00019178,2]
[349557632,1737294639099,-500.0,0.00019178,2]
[349557634,1737294639108,-500.0,0.00019178,2]
[349557636,1737294639117,-500.0,0.00019178,2]
[349557638,1737294639127,-500.0,0.00019178,2]
[349557640,1737294639136,-425.22720164,0.00019178,2]
[349557788,1737294640723,-74.77279836,0.00019178,2]
[349557790,1737294640733,-506.03841315,0.00019178,2]
[349557792,1737294640742,-500.0,0.00019178,2]
[349557794,1737294640751,-494.33878849,0.00019178,2]
[349557797,1737294640764,-5.66121151,0.00019178,2]
[349557799,1737294640773,-500.0,0.00019178,2]
[349557801,1737294640782,-500.0,0.00019178,2]
[349557803,1737294640790,-500.0,0.00019178,2]
[349557805,1737294640799,-500.0,0.00019178,2]
[349557807,1737294640808,-352.36831387,0.00019178,2]
[349557821,1737294640935,-147.63168613,0.00019178,2]
[349557822,1737294640944,-500.0,0.00019178,2]
[349557824,1737294640953,-500.0,0.00019178,2]
[349557826,1737294640962,-282.08921212,0.00019178,2]
[349557828,1737294640972,-531.94140268,0.00019178,2]
[349557830,1737294640981,-500.0,0.00019178,2]
[349557832,1737294640990,-500.0,0.00019178,2]
[349557834,1737294640999,-500.0,0.00019178,2]
[349557836,1737294641008,-366.50564148,0.00019178,2]
[349557838,1737294641017,-517.45275328,0.00019178,2]
[349557840,1737294641026,-500.0,0.00019178,2]
[349557842,1737294641035,-500.0,0.00019178,2]
[349557844,1737294641044,-500.0,0.00019178,2]
[349557846,1737294641053,-524.01064264,0.00019178,2]
[349557848,1737294641062,-500.0,0.00019178,2]
[349557850,1737294641071,-500.0,0.00019178,2]
[349557852,1737294641079,-512.15493597,0.00019178,2]
[349557854,1737294641088,-476.50348355,0.00019178,2]
[349557856,1737294641097,-512.52223098,0.00019178,2]
[349557858,1737294641106,-500.0,0.00019178,2]
[349557860,1737294641114,-500.0,0.00019178,2]
[349557862,1737294641123,-530.99197898,0.00019178,2]
[349557864,1737294641132,-500.0,0.00019178,2]
[349557866,1737294641141,-500.0,0.00019178,2]
[349557868,1737294641150,-500.0,0.00019178,2]
[349557870,1737294641162,-500.0,0.00019178,2]
[349557872,1737294641171,-500.0,0.00019178,2]
[349557874,1737294641180,-500.0,0.00019178,2]
[349557876,1737294641189,-500.0,0.00019178,2]
[349557878,1737294641198,-500.0,0.00019178,2]
[349557880,1737294641209,-500.0,0.00019178,2]
[349557881,1737294641218,-500.0,0.00019178,2]
[349557883,1737294641227,-500.0,0.00019178,2]
[349557885,1737294641236,-500.0,0.00019178,2]
[349557887,1737294641245,-511.10891187,0.00019178,2]
[349557889,1737294641255,-500.0,0.00019178,2]
[349557891,1737294641264,-508.51939562,0.00019178,2]
[349557893,1737294641274,-500.0,0.00019178,2]
[349557895,1737294641283,-500.0,0.00019178,2]
[349557897,1737294641292,-500.0,0.00019178,2]
[349557899,1737294641301,-500.0,0.00019178,2]
[349557901,1737294641310,-500.0,0.00019178,2]
[349557903,1737294641319,-500.0,0.00019178,2]
[349557905,1737294641328,-500.0,0.00019178,2]
[349557907,1737294641337,-500.0,0.00019178,2]
[349557909,1737294641346,-500.0,0.00019178,2]
[349557911,1737294641355,-500.0,0.00019178,2]
[349557913,1737294641364,-265.63606933,0.00019178,2]
[349557915,1737294641373,-500.0,0.00019178,2]
[349557917,1737294641382,-500.0,0.00019178,2]
[349557919,1737294641391,-500.0,0.00019178,2]
[349557921,1737294641400,-560.94,0.00019178,2]
[349557923,1737294641411,-500.0,0.00019178,2]
[349557925,1737294641420,-500.0,0.00019178,2]
[349557927,1737294641428,-500.0,0.00019178,2]
[349557929,1737294641437,-500.0,0.00019178,2]
[349557930,1737294641446,-500.0,0.00019178,2]
[349557931,1737294641458,-500.0,0.00019178,2]
[349557932,1737294641467,-500.0,0.00019178,2]
[349557933,1737294641475,-500.0,0.00019178,2]
[349557934,1737294641484,-500.0,0.00019178,2]
[349557935,1737294641493,-500.0,0.00019178,2]
[349557936,1737294641503,-163.72946289,0.00019178,2]
[349557957,1737294641709,-500.0,0.00019178,2]
[349557959,1737294641719,-500.0,0.00019178,2]
[349557961,1737294641729,-500.0,0.00019178,2]
[349557962,1737294641738,-500.0,0.00019178,2]
[349557964,1737294641747,-500.0,0.00019178,2]
[349557965,1737294641757,-500.0,0.00019178,2]
[349557966,1737294641766,-500.0,0.00019178,2]
[349557967,1737294641775,-500.0,0.00019178,2]
[349557968,1737294641784,-500.0,0.00019178,2]
[349557969,1737294641793,-500.0,0.00019178,2]
[349557970,1737294641802,-500.0,0.00019178,2]
[349557971,1737294641811,-500.0,0.00019178,2]
[349557972,1737294641820,-500.0,0.00019178,2]
[349557973,1737294641829,-500.0,0.00019178,2]
[349557975,1737294641838,-500.0,0.00019178,2]
[349557977,1737294641847,-500.0,0.00019178,2]
[349557978,1737294641857,-500.0,0.00019178,2]
[349557979,1737294641866,-500.0,0.00019178,2]
[349557980,1737294641874,-500.0,0.00019178,2]
[349557981,1737294641883,-500.0,0.00019178,2]
[349557982,1737294641892,-500.0,0.00019178,2]
[349557983,1737294641902,-500.0,0.00019178,2]
[349557984,1737294641911,-500.0,0.00019178,2]
[349557985,1737294641921,-500.0,0.00019178,2]
[349557986,1737294641930,-500.0,0.00019178,2]
[349557987,1737294641940,-500.0,0.00019178,2]
[349557988,1737294641949,-500.0,0.00019178,2]
[349557989,1737294641959,-500.0,0.00019178,2]
[349557990,1737294641968,-500.0,0.00019178,2]
[349557991,1737294641978,-500.0,0.00019178,2]
[349557992,1737294641988,-500.0,0.00019178,2]
[349557993,1737294641997,-500.0,0.00019178,2]
[349557994,1737294642006,-860.516067,0.00019178,2]
[349557995,1737294642016,-500.0,0.00019178,2]
[349557996,1737294642026,-34.88125105,0.00019178,2]
[349558017,1737294643494,-465.11874895,0.00019178,2]
[349558018,1737294643503,-65.20844334,0.00019178,2]
[349558019,1737294643569,-434.79155666,0.00019178,2]
[349558020,1737294643579,-23.02444334,0.00019178,2]
[349558021,1737294643686,-999.26555666,0.00019178,2]
[349558022,1737294643696,-500.0,0.00019178,2]
[349558023,1737294643706,-506.50556852,0.00019178,2]
[349558024,1737294643716,-500.0,0.00019178,2]
[349558025,1737294643725,-500.0,0.00019178,2]
[349558026,1737294643735,-500.0,0.00019178,2]
[349558027,1737294643744,-500.0,0.00019178,2]
[349558028,1737294643754,-500.0,0.00019178,2]
[349558029,1737294643763,-500.0,0.00019178,2]
[349558030,1737294643772,-500.0,0.00019178,2]
[349558031,1737294643781,-500.0,0.00019178,2]
[349558032,1737294643791,-500.0,0.00019178,2]
[349558033,1737294643800,-500.0,0.00019178,2]
[349558034,1737294643810,-500.0,0.00019178,2]
[349558035,1737294643819,-168.57318396,0.00019178,2]
[349558036,1737294643828,-500.0,0.00019178,2]
[349558037,1737294643837,-500.0,0.00019178,2]
[349558038,1737294643847,-500.0,0.00019178,2]
[349558039,1737294643857,-500.0,0.00019178,2]
[349558040,1737294643867,-483.459183,0.00019178,2]
[349558041,1737294643876,-491.56622696,0.00019178,2]
[349558042,1737294643889,-8.43377304,0.00019178,2]
[349558043,1737294643898,-500.0,0.00019178,2]
[349558044,1737294643908,-500.0,0.00019178,2]
[349558045,1737294643918,-500.0,0.00019178,2]
[349558046,1737294643927,-500.0,0.00019178,2]
[349558047,1737294643937,-500.0,0.00019178,2]
[349558048,1737294643946,-500.0,0.00019178,2]
[349558049,1737294643956,-500.0,0.00019178,2]
[349558050,1737294643966,-164.113929,0.00019178,2]
[349558051,1737294643976,-500.0,0.00019178,2]
[349558052,1737294643986,-500.0,0.00019178,2]
[349558053,1737294643995,-500.0,0.00019178,2]
[349558054,1737294644005,-500.0,0.00019178,2]
[349558055,1737294644014,-500.0,0.00019178,2]
[349558056,1737294644023,-500.0,0.00019178,2]
[349558057,1737294644032,-162.043691,0.00019178,2]
[349558058,1737294644042,-500.0,0.00019178,2]
[349558060,1737294644051,-500.0,0.00019178,2]
[349558061,1737294644061,-500.0,0.00019178,2]
[349558062,1737294644070,-500.0,0.00019178,2]
[349558063,1737294644079,-314.008464,0.00019178,2]
[349558064,1737294644088,-450.0,0.00019178,2]
[349558065,1737294644097,-499.98862937,0.00019178,2]
[349558066,1737294644106,-395.36882309,0.00019178,2]
[349558067,1737294644118,-104.63117691,0.00019178,2]
[349558068,1737294644128,-500.0,0.00019178,2]
[349558069,1737294644137,-513.95825394,0.00019178,2]
[349558070,1737294644146,-500.0,0.00019178,2]
[349558071,1737294644155,-500.0,0.00019178,2]
[349558072,1737294644167,-500.0,0.00019178,2]
[349558073,1737294644177,-500.0,0.00019178,2]
[349558074,1737294644186,-500.0,0.00019178,2]
[349558076,1737294644196,-500.0,0.00019178,2]
[349558077,1737294644206,-500.0,0.00019178,2]
[349558078,1737294644216,-500.0,0.00019178,2]
[349558079,1737294644226,-500.0,0.00019178,2]
[349558080,1737294644235,-500.0,0.00019178,2]
[349558081,1737294644244,-500.0,0.00019178,2]
[349558082,1737294644253,-500.0,0.00019178,2]
[349558083,1737294644263,-500.0,0.00019178,2]
[349558084,1737294644272,-500.0,0.00019178,2]
[349558085,1737294644281,-500.0,0.00019178,2]
[349558086,1737294644290,-500.0,0.00019178,2]
[349558087,1737294644299,-500.0,0.00019178,2]
[349558088,1737294644308,-500.0,0.00019178,2]
[349558089,1737294644318,-500.0,0.00019178,2]
[349558090,1737294644327,-500.0,0.00019178,2]
[349558091,1737294644337,-500.0,0.00019178,2]
[349558092,1737294644346,-500.0,0.00019178,2]
[349558093,1737294644355,-500.0,0.00019178,2]
[349558094,1737294644364,-500.0,0.00019178,2]
[349558095,1737294644375,-500.0,0.00019178,2]
[349558096,1737294644384,-500.0,0.00019178,2]
[349558097,1737294644394,-500.0,0.00019178,2]
[349558098,1737294644403,-500.0,0.00019178,2]
[349558099,1737294644413,-500.0,0.00019178,2]
[349558100,1737294644422,-500.0,0.00019178,2]
[349558101,1737294644432,-500.0,0.00019178,2]
[349558102,1737294644441,-500.0,0.00019178,2]
[349558103,1737294644451,-500.0,0.00019178,2]
[349558104,1737294644462,-500.0,0.00019178,2]
[349558105,1737294644471,-500.0,0.00019178,2]
[349558106,1737294644480,-500.0,0.00019178,2]
[349558107,1737294644490,-500.0,0.00019178,2]
[349558108,1737294644499,-500.0,0.00019178,2]
[349558109,1737294644508,-500.0,0.00019178,2]
[349558110,1737294644518,-500.0,0.00019178,2]
[349558111,1737294644527,-500.0,0.00019178,2]
[349558112,1737294644538,-500.0,0.00019178,2]
[349558113,1737294644548,-500.0,0.00019178,2]
[349558114,1737294644557,-500.0,0.00019178,2]
[349558115,1737294644567,-500.0,0.00019178,2]
[349558116,1737294644577,-500.0,0.00019178,2]
[349558117,1737294644586,-508.96169299,0.00019178,2]
[349558118,1737294644595,-500.0,0.00019178,2]
[349558119,1737294644604,-459.68149541,0.00019178,2]
[349558120,1737294644613,-500.0,0.00019178,2]
[349558121,1737294644623,-491.81044698,0.00019178,2]
[349558122,1737294644632,-500.0,0.00019178,2]
[349558123,1737294644642,-500.0,0.00019178,2]
[349558124,1737294644651,-500.0,0.00019178,2]
[349558125,1737294644662,-513.66,0.00019178,2]
[349558126,1737294644671,-500.0,0.00019178,2]
[349558127,1737294644681,-500.0,0.00019178,2]
[349558128,1737294644691,-500.0,0.00019178,2]
[349558129,1737294644700,-500.0,0.00019178,2]
[349558130,1737294644710,-564.89344077,0.00019178,2]
[349558131,1737294644719,-500.0,0.00019178,2]
[349558132,1737294644729,-500.0,0.00019178,2]
[349558133,1737294644739,-500.0,0.00019178,2]
[349558134,1737294644748,-500.0,0.00019178,2]
[349558135,1737294644757,-500.0,0.00019178,2]
[349558136,1737294644766,-500.0,0.00019178,2]
[349558137,1737294644776,-511.99657616,0.00019178,2]
[349558138,1737294644785,-500.0,0.00019178,2]
[349558139,1737294644794,-500.0,0.00019178,2]
[349558140,1737294644806,-500.0,0.00019178,2]
[349558141,1737294644815,-500.0,0.00019178,2]
[349558142,1737294644825,-500.0,0.00019178,2]
[349558143,1737294644835,-500.0,0.00019178,2]
[349558144,1737294644844,-501.04596101,0.00019178,2]
[349558145,1737294644854,-500.0,0.00019178,2]
[349558146,1737294644863,-500.0,0.00019178,2]
[349558147,1737294644872,-500.0,0.00019178,2]
[349558148,1737294644882,-500.0,0.00019178,2]
[349558149,1737294644891,-500.0,0.00019178,2]
[349558150,1737294644901,-500.0,0.00019178,2]
[349558151,1737294644914,-500.0,0.00019178,2]
[349558152,1737294644923,-500.0,0.00019178,2]
[349558153,1737294644932,-500.0,0.00019178,2]
[349558154,1737294644941,-517.69,0.00019178,2]
[349558155,1737294644951,-500.0,0.00019178,2]
[349558156,1737294644960,-500.0,0.00019178,2]
[349558157,1737294644970,-500.0,0.00019178,2]
[349558158,1737294644981,-500.0,0.00019178,2]
[349558159,1737294644990,-500.0,0.00019178,2]
[349558160,1737294645000,-500.0,0.00019178,2]
[349558161,1737294645010,-500.0,0.00019178,2]
[349558162,1737294645019,-500.0,0.00019178,2]
[349558163,1737294645028,-500.0,0.00019178,2]
[349558164,1737294645037,-500.0,0.00019178,2]
[349558165,1737294645046,-514.78850625,0.00019178,2]
[349558166,1737294645055,-500.0,0.00019178,2]
[349558167,1737294645064,-517.72320627,0.00019178,2]
[349558168,1737294645074,-500.0,0.00019178,2]
[349558169,1737294645083,-500.0,0.00019178,2]
[349558170,1737294645092,-500.0,0.00019178,2]
[349558171,1737294645101,-500.0,0.00019178,2]
[349558172,1737294645109,-500.0,0.00019178,2]
[349558173,1737294645118,-515.12971938,0.00019178,2]
[349558174,1737294645127,-500.0,0.00019178,2]
[349558175,1737294645139,-500.0,0.00019178,2]
[349558176,1737294645148,-306.72338067,0.00019178,2]
[349558177,1737294645158,-500.0,0.00019178,2]
[349558178,1737294645169,-500.0,0.00019178,2]
[349558179,1737294645179,-500.0,0.00019178,2]
[349558180,1737294645188,-500.0,0.00019178,2]
[349558181,1737294645197,-500.0,0.00019178,2]
[349558182,1737294645207,-500.0,0.00019178,2]